[Event "Titled Tuesday Blitz April 12 Late 2022"]
[White "Stelmaszyk, Nico"]
[Black "profaVa"]
[WhiteFideId "16200462"]
[WhiteElo "2119"]
[BlackElo "2408"]
[Result "1-0"]
[Round "10"]
[TimeControl "180+1"]
[Date "2022.04.13"]
[WhiteClock "0:02:01"]
[BlackClock "0:00:30"]

1. e4 {[%clk 0:03:00]}  e5 {[%clk 0:02:59]} 2. Bc4 {[%clk 0:03:00]}  Nc6 {[%clk 0:02:59]} 3. Nf3 {[%clk 0:03:01]}  Nf6 {[%clk 0:02:58]} 4. d4 {[%clk 0:03:01]}  exd4 {[%clk 0:02:58]} 5. O-O {[%clk 0:03:02]}  Nxe4 {[%clk 0:02:58]} 6. Re1 {[%clk 0:03:03]}  d5 {[%clk 0:02:58]} 7. Nc3 {[%clk 0:03:03]}  dxc4 {[%clk 0:02:54]} 8. Rxe4+ {[%clk 0:03:03]}  Be6 {[%clk 0:02:53]} 9. Nxd4 {[%clk 0:03:04]}  Nxd4 {[%clk 0:02:53]} 10. Rxd4 {[%clk 0:03:05]}  Bd6 {[%clk 0:02:52]} 11. Bf4 {[%clk 0:03:03]}  O-O {[%clk 0:02:51]} 12. Ne4 {[%clk 0:03:03]}  Qh4 {[%clk 0:02:07]} 13. Nxd6 {[%clk 0:02:57]}  cxd6 {[%clk 0:01:59]} 14. Bxd6 {[%clk 0:02:58]}  Qf6 {[%clk 0:01:54]} 15. Bxf8 {[%clk 0:02:55]}  Rxf8 {[%clk 0:01:55]} 16. c3 {[%clk 0:02:54]}  g6 {[%clk 0:01:49]} 17. Qd2 {[%clk 0:02:49]}  Kg7 {[%clk 0:01:49]} 18. Rd1 {[%clk 0:02:45]}  b5 {[%clk 0:01:48]} 19. h3 {[%clk 0:02:44]}  a5 {[%clk 0:01:47]} 20. Rd8 {[%clk 0:02:43]}  Rxd8 {[%clk 0:01:45]} 21. Qxd8 {[%clk 0:02:44]}  Qf5 {[%clk 0:01:35]} 22. Qd4+ {[%clk 0:02:33]}  Kh6 {[%clk 0:01:33]} 23. Re1 {[%clk 0:02:24]}  b4 {[%clk 0:01:27]} 24. Re5 {[%clk 0:02:22]}  Qb1+ {[%clk 0:01:25]} 25. Kh2 {[%clk 0:02:22]}  Qxb2 {[%clk 0:01:24]} 26. Re4 {[%clk 0:02:18]}  Bf5 {[%clk 0:00:34]} 27. Rh4+ {[%clk 0:02:12]}  Kg5 {[%clk 0:00:33]} 28. Qd8+ {[%clk 0:02:08]}  f6 {[%clk 0:00:33]} 29. f4+ {[%clk 0:01:59]}  Kxh4 {[%clk 0:00:32]} 30. Qxf6+ {[%clk 0:02:00]}  Kh5 {[%clk 0:00:30]} 31. Qg5# {[%clk 0:02:01]} 1-0


[Site "https://www.chess.com"]

[Event "Titled Tuesday Blitz April 12 Late 2022"]
[White "Tanenbaum, Zachary"]
[Black "Noboa Silva, Kevin"]
[WhiteFideId "2060850"]
[BlackFideId "3618471"]
[WhiteElo "2168"]
[BlackElo "2172"]
[Result "1-0"]
[Round "10"]
[TimeControl "180+1"]
[Date "2022.04.13"]
[WhiteClock "0:00:50"]
[BlackClock "0:00:01"]

1. e4 {[%clk 0:03:00]}  e6 {[%clk 0:02:51]} 2. d4 {[%clk 0:03:00]}  d5 {[%clk 0:02:51]} 3. Nc3 {[%clk 0:03:01]}  Nf6 {[%clk 0:02:51]} 4. Bg5 {[%clk 0:03:00]}  Be7 {[%clk 0:02:50]} 5. e5 {[%clk 0:03:00]}  Nfd7 {[%clk 0:02:50]} 6. h4 {[%clk 0:03:01]}  h6 {[%clk 0:02:50]} 7. Bxe7 {[%clk 0:03:01]}  Qxe7 {[%clk 0:02:51]} 8. Qg4 {[%clk 0:03:01]}  O-O {[%clk 0:02:52]} 9. O-O-O {[%clk 0:02:59]}  c5 {[%clk 0:02:52]} 10. f4 {[%clk 0:02:59]}  cxd4 {[%clk 0:02:52]} 11. Nce2 {[%clk 0:02:59]}  Nc6 {[%clk 0:02:51]} 12. Nf3 {[%clk 0:02:59]}  Nc5 {[%clk 0:02:48]} 13. Nexd4 {[%clk 0:02:57]}  Ne4 {[%clk 0:02:48]} 14. Bd3 {[%clk 0:02:34]}  Nf2 {[%clk 0:02:18]} 15. Qh5 {[%clk 0:02:34]}  Nxd1 {[%clk 0:02:10]} 16. Rxd1 {[%clk 0:02:33]}  Nxd4 {[%clk 0:02:08]} 17. Nxd4 {[%clk 0:02:33]}  f5 {[%clk 0:02:05]} 18. g4 {[%clk 0:02:18]}  Bd7 {[%clk 0:01:43]} 19. gxf5 {[%clk 0:02:16]}  exf5 {[%clk 0:01:43]} 20. Nxf5 {[%clk 0:02:11]}  Bxf5 {[%clk 0:01:38]} 21. Bxf5 {[%clk 0:02:12]}  Qf7 {[%clk 0:01:39]} 22. Qxf7+ {[%clk 0:02:07]}  Kxf7 {[%clk 0:01:38]} 23. Rxd5 {[%clk 0:02:07]}  Ke7 {[%clk 0:01:34]} 24. Rd7+ {[%clk 0:01:37]}  Ke8 {[%clk 0:01:24]} 25. Be6 {[%clk 0:01:37]}  Rxf4 {[%clk 0:01:21]} 26. Rxb7 {[%clk 0:01:11]}  g5 {[%clk 0:01:03]} 27. h5 {[%clk 0:01:06]}  Rd8 {[%clk 0:00:57]} 28. b3 {[%clk 0:01:05]}  g4 {[%clk 0:00:52]} 29. Rxa7 {[%clk 0:01:00]}  g3 {[%clk 0:00:47]} 30. Rg7 {[%clk 0:00:59]}  Rf1+ {[%clk 0:00:38]} 31. Kb2 {[%clk 0:00:59]}  Rg1 {[%clk 0:00:39]} 32. Bc4 {[%clk 0:00:51]}  Kf8 {[%clk 0:00:09]} 33. Rf7+ {[%clk 0:00:51]}  Ke8 {[%clk 0:00:09]} 34. e6 {[%clk 0:00:51]}  Re1 {[%clk 0:00:06]} 35. Bb5+ {[%clk 0:00:51]}  Rd7 {[%clk 0:00:05]} 36. Bxd7+ {[%clk 0:00:51]}  Kd8 {[%clk 0:00:05]} 37. Rg7 {[%clk 0:00:52]}  Re3 {[%clk 0:00:04]} 38. Bc6 {[%clk 0:00:51]}  Kc8 {[%clk 0:00:02]} 39. e7 {[%clk 0:00:50]}  Kc7 {[%clk 0:00:03]} 40. e8=Q+ {[%clk 0:00:49]}  Kb6 {[%clk 0:00:02]} 41. Qxe3+ {[%clk 0:00:50]}  Ka5 {[%clk 0:00:01]} 42. Qc5+ {[%clk 0:00:50]}  Ka6 {[%clk 0:00:01]} 43. Qb5# {[%clk 0:00:50]} 1-0


[Site "https://www.chess.com"]

[Event "Titled Tuesday Blitz April 12 Late 2022"]
[White "Tillyaev, Ulugbek"]
[Black "Ansh M Shah"]
[WhiteFideId "14202441"]
[BlackFideId "25033379"]
[WhiteElo "2377"]
[BlackElo "1819"]
[Result "1/2-1/2"]
[Round "10"]
[TimeControl "180+1"]
[Date "2022.04.12"]
[WhiteClock "0:00:35"]
[BlackClock "0:00:04"]

1. e4 {[%clk 0:03:00]}  c6 {[%clk 0:02:59]} 2. d4 {[%clk 0:02:58]}  d5 {[%clk 0:03:00]} 3. exd5 {[%clk 0:02:58]}  cxd5 {[%clk 0:03:01]} 4. Bd3 {[%clk 0:02:59]}  Nf6 {[%clk 0:03:02]} 5. h3 {[%clk 0:02:58]}  Nc6 {[%clk 0:03:03]} 6. Nf3 {[%clk 0:02:59]}  g6 {[%clk 0:03:01]} 7. c3 {[%clk 0:02:58]}  Bg7 {[%clk 0:03:02]} 8. O-O {[%clk 0:02:58]}  O-O {[%clk 0:03:02]} 9. Re1 {[%clk 0:02:58]}  Bf5 {[%clk 0:03:01]} 10. Bxf5 {[%clk 0:02:56]}  gxf5 {[%clk 0:03:02]} 11. Bg5 {[%clk 0:02:55]}  e6 {[%clk 0:03:02]} 12. Nbd2 {[%clk 0:02:55]}  Qb6 {[%clk 0:03:02]} 13. Bxf6 {[%clk 0:02:50]}  Bxf6 {[%clk 0:03:01]} 14. Nb3 {[%clk 0:02:51]}  Kh8 {[%clk 0:02:57]} 15. Nc5 {[%clk 0:02:33]}  Rg8 {[%clk 0:02:48]} 16. Qb3 {[%clk 0:02:27]}  Be7 {[%clk 0:02:40]} 17. Qxb6 {[%clk 0:02:24]}  axb6 {[%clk 0:02:41]} 18. Nd7 {[%clk 0:02:25]}  b5 {[%clk 0:02:35]} 19. Nfe5 {[%clk 0:02:21]}  Rg7 {[%clk 0:02:12]} 20. a3 {[%clk 0:02:15]}  Rag8 {[%clk 0:02:09]} 21. g3 {[%clk 0:02:12]}  f4 {[%clk 0:02:09]} 22. g4 {[%clk 0:02:11]}  h5 {[%clk 0:02:09]} 23. f3 {[%clk 0:02:09]}  Bh4 {[%clk 0:02:08]} 24. Re2 {[%clk 0:02:09]}  Na5 {[%clk 0:01:51]} 25. Kf1 {[%clk 0:01:57]}  f6 {[%clk 0:01:48]} 26. Nd3 {[%clk 0:01:56]}  Rxd7 {[%clk 0:01:47]} 27. Nxf4 {[%clk 0:01:54]}  hxg4 {[%clk 0:01:41]} 28. hxg4 {[%clk 0:01:53]}  Bg5 {[%clk 0:01:32]} 29. Nxe6 {[%clk 0:01:51]}  Re7 {[%clk 0:01:32]} 30. Kg2 {[%clk 0:01:51]}  Rge8 {[%clk 0:01:30]} 31. Rh1+ {[%clk 0:01:51]}  Kg8 {[%clk 0:01:31]} 32. Rhe1 {[%clk 0:01:39]}  Nc4 {[%clk 0:01:11]} 33. Kg3 {[%clk 0:01:21]}  Kf7 {[%clk 0:01:01]} 34. Nxg5+ {[%clk 0:01:18]}  fxg5 {[%clk 0:01:02]} 35. Rxe7+ {[%clk 0:01:17]}  Rxe7 {[%clk 0:01:03]} 36. Rh1 {[%clk 0:01:16]}  Kg6 {[%clk 0:01:03]} 37. b3 {[%clk 0:01:15]}  Nxa3 {[%clk 0:01:01]} 38. Ra1 {[%clk 0:01:15]}  Nc2 {[%clk 0:01:01]} 39. Ra5 {[%clk 0:01:16]}  Ne3 {[%clk 0:00:59]} 40. Rxb5 {[%clk 0:01:15]}  Rd7 {[%clk 0:01:00]} 41. Rb6+ {[%clk 0:01:14]}  Kg7 {[%clk 0:01:00]} 42. f4 {[%clk 0:01:14]}  gxf4+ {[%clk 0:00:57]} 43. Kxf4 {[%clk 0:01:15]}  Nd1 {[%clk 0:00:56]} 44. c4 {[%clk 0:01:08]}  dxc4 {[%clk 0:00:57]} 45. bxc4 {[%clk 0:01:09]}  Rxd4+ {[%clk 0:00:57]} 46. Ke5 {[%clk 0:01:10]}  Rd7 {[%clk 0:00:37]} 47. c5 {[%clk 0:01:09]}  Ne3 {[%clk 0:00:33]} 48. Ke4 {[%clk 0:01:08]}  Re7+ {[%clk 0:00:20]} 49. Kd4 {[%clk 0:01:06]}  Nxg4 {[%clk 0:00:19]} 50. c6 {[%clk 0:01:06]}  bxc6 {[%clk 0:00:18]} 51. Rxc6 {[%clk 0:01:07]}  Nf6 {[%clk 0:00:18]} 52. Rd6 {[%clk 0:01:02]}  Kf7 {[%clk 0:00:17]} 53. Rd8 {[%clk 0:01:01]}  Nd7 {[%clk 0:00:17]} 54. Rh8 {[%clk 0:00:58]}  Ke6 {[%clk 0:00:17]} 55. Rh6+ {[%clk 0:00:58]}  Nf6 {[%clk 0:00:18]} 56. Rh8 {[%clk 0:00:57]}  Rd7+ {[%clk 0:00:19]} 57. Ke3 {[%clk 0:00:57]}  Ra7 {[%clk 0:00:19]} 58. Rb8 {[%clk 0:00:56]}  Ra3+ {[%clk 0:00:19]} 59. Kd4 {[%clk 0:00:56]}  Ra4+ {[%clk 0:00:19]} 60. Ke3 {[%clk 0:00:55]}  Ke5 {[%clk 0:00:20]} 61. Kd3 {[%clk 0:00:52]}  Ra3+ {[%clk 0:00:18]} 62. Kc4 {[%clk 0:00:52]}  Ne4 {[%clk 0:00:18]} 63. Re8+ {[%clk 0:00:52]}  Kf4 {[%clk 0:00:18]} 64. Rf8+ {[%clk 0:00:52]}  Ke3 {[%clk 0:00:19]} 65. Re8 {[%clk 0:00:51]}  Ra1 {[%clk 0:00:18]} 66. Re7 {[%clk 0:00:49]}  Rc1+ {[%clk 0:00:18]} 67. Kd5 {[%clk 0:00:49]}  Rd1+ {[%clk 0:00:16]} 68. Ke5 {[%clk 0:00:49]}  Ng3 {[%clk 0:00:13]} 69. Ra7 {[%clk 0:00:46]}  Rd3 {[%clk 0:00:12]} 70. Ra4 {[%clk 0:00:45]}  Ne2 {[%clk 0:00:11]} 71. Re4+ {[%clk 0:00:44]}  Kf3 {[%clk 0:00:12]} 72. Ra4 {[%clk 0:00:43]}  Nc3 {[%clk 0:00:12]} 73. Ra3 {[%clk 0:00:41]}  Re3+ {[%clk 0:00:13]} 74. Kf5 {[%clk 0:00:40]}  Rd3 {[%clk 0:00:12]} 75. Ke5 {[%clk 0:00:39]}  Ke3 {[%clk 0:00:11]} 76. Rb3 {[%clk 0:00:39]}  Kd2 {[%clk 0:00:11]} 77. Rb2+ {[%clk 0:00:38]}  Kc1 {[%clk 0:00:11]} 78. Rb3 {[%clk 0:00:39]}  Re3+ {[%clk 0:00:10]} 79. Kd4 {[%clk 0:00:37]}  Nd1 {[%clk 0:00:03]} 80. Rxe3 {[%clk 0:00:35]}  Nxe3 {[%clk 0:00:04]} 1/2-1/2


[Site "https://www.chess.com"]

[Event "Titled Tuesday Blitz April 12 Late 2022"]
[White "Tregubov, Pavel V."]
[Black "Le Goff, Ronan"]
[WhiteFideId "4115341"]
[BlackFideId "612073"]
[WhiteElo "2341"]
[BlackElo "2276"]
[Result "1-0"]
[Round "10"]
[TimeControl "180+1"]
[Date "2022.04.12"]
[WhiteClock "0:01:48"]
[BlackClock "0:00:53"]

1. e4 {[%clk 0:03:00]}  e5 {[%clk 0:02:56]} 2. Nf3 {[%clk 0:03:00]}  Nc6 {[%clk 0:02:57]} 3. Bb5 {[%clk 0:03:00]}  Nf6 {[%clk 0:02:54]} 4. d4 {[%clk 0:02:59]}  exd4 {[%clk 0:02:31]} 5. O-O {[%clk 0:02:57]}  Be7 {[%clk 0:02:27]} 6. e5 {[%clk 0:02:56]}  Ne4 {[%clk 0:02:22]} 7. Re1 {[%clk 0:02:52]}  Nc5 {[%clk 0:02:17]} 8. Nxd4 {[%clk 0:02:51]}  Nxd4 {[%clk 0:02:15]} 9. Qxd4 {[%clk 0:02:50]}  O-O {[%clk 0:02:14]} 10. Nc3 {[%clk 0:02:49]}  c6 {[%clk 0:02:10]} 11. Bf1 {[%clk 0:02:43]}  d5 {[%clk 0:02:09]} 12. exd6 {[%clk 0:02:38]}  Bxd6 {[%clk 0:02:07]} 13. Bf4 {[%clk 0:02:27]}  Bxf4 {[%clk 0:01:55]} 14. Qxf4 {[%clk 0:02:27]}  Be6 {[%clk 0:01:45]} 15. Rad1 {[%clk 0:02:24]}  Qb6 {[%clk 0:01:44]} 16. b4 {[%clk 0:02:23]}  Nd7 {[%clk 0:01:31]} 17. a3 {[%clk 0:02:08]}  Nf6 {[%clk 0:01:29]} 18. Na4 {[%clk 0:02:00]}  Nh5 {[%clk 0:00:53]} 19. Qe5 {[%clk 0:01:48]} 1-0


[Site "https://www.chess.com"]

[Event "Titled Tuesday Blitz April 12 Late 2022"]
[White "Vusatiuk, Vladimir"]
[Black "Senthilkumar, Pranav"]
[WhiteFideId "14118610"]
[BlackFideId "2083477"]
[WhiteElo "2157"]
[BlackElo "2404"]
[Result "1-0"]
[Round "10"]
[TimeControl "180+1"]
[Date "2022.04.13"]
[WhiteClock "0:00:43"]
[BlackClock "0:01:57"]

1. d4 {[%clk 0:03:00]}  Nf6 {[%clk 0:02:47]} 2. c4 {[%clk 0:02:59]}  c5 {[%clk 0:02:47]} 3. d5 {[%clk 0:02:58]}  b5 {[%clk 0:02:46]} 4. cxb5 {[%clk 0:02:59]}  a6 {[%clk 0:02:46]} 5. e3 {[%clk 0:02:58]}  axb5 {[%clk 0:02:46]} 6. Bxb5 {[%clk 0:02:58]}  Ba6 {[%clk 0:02:47]} 7. Bxa6 {[%clk 0:02:56]}  Nxa6 {[%clk 0:02:48]} 8. Nc3 {[%clk 0:02:55]}  g6 {[%clk 0:02:48]} 9. e4 {[%clk 0:02:53]}  d6 {[%clk 0:02:48]} 10. Nge2 {[%clk 0:02:52]}  Bg7 {[%clk 0:02:48]} 11. O-O {[%clk 0:02:49]}  O-O {[%clk 0:02:49]} 12. f3 {[%clk 0:02:45]}  Qb6 {[%clk 0:02:43]} 13. a4 {[%clk 0:02:16]}  c4+ {[%clk 0:02:34]} 14. Kh1 {[%clk 0:02:16]}  Nc5 {[%clk 0:02:34]} 15. Be3 {[%clk 0:01:51]}  Nfd7 {[%clk 0:02:31]} 16. Rb1 {[%clk 0:01:43]}  Rfb8 {[%clk 0:02:25]} 17. Bd4 {[%clk 0:01:41]}  Qb3 {[%clk 0:02:19]} 18. Bxg7 {[%clk 0:01:38]}  Qxd1 {[%clk 0:02:17]} 19. Rfxd1 {[%clk 0:01:39]}  Kxg7 {[%clk 0:02:17]} 20. Kg1 {[%clk 0:01:36]}  Nxa4 {[%clk 0:02:16]} 21. Nxa4 {[%clk 0:01:08]}  Rxa4 {[%clk 0:02:17]} 22. Nd4 {[%clk 0:00:59]}  Rab4 {[%clk 0:02:14]} 23. Nc6 {[%clk 0:00:58]}  Rxb2 {[%clk 0:02:05]} 24. Nxb8 {[%clk 0:00:56]}  c3 {[%clk 0:02:01]} 25. Rxb2 {[%clk 0:00:43]}  Nxb8 {[%clk 0:01:57]} 26. Rxb8 {[%clk 0:00:43]} 1-0


[Site "https://www.chess.com"]

[Event "Titled Tuesday Blitz April 12 Late 2022"]
[White "Zherebtsova, Alexandra"]
[Black "Cagara, Paulina"]
[WhiteFideId "24129518"]
[BlackFideId "1124870"]
[WhiteElo "2025"]
[BlackElo "1780"]
[Result "1-0"]
[Round "10"]
[TimeControl "180+1"]
[Date "2022.04.13"]
[WhiteClock "0:02:05"]
[BlackClock "0:02:17"]

1. d4 {[%clk 0:03:00]}  f5 {[%clk 0:02:59]} 2. Nf3 {[%clk 0:03:01]}  Nf6 {[%clk 0:02:59]} 3. g3 {[%clk 0:03:02]}  g6 {[%clk 0:02:59]} 4. Bg2 {[%clk 0:03:02]}  Bg7 {[%clk 0:03:00]} 5. O-O {[%clk 0:03:03]}  O-O {[%clk 0:03:00]} 6. b3 {[%clk 0:03:04]}  d6 {[%clk 0:03:00]} 7. c4 {[%clk 0:03:03]}  Qe8 {[%clk 0:03:00]} 8. Ba3 {[%clk 0:03:01]}  b6 {[%clk 0:02:53]} 9. Nc3 {[%clk 0:02:59]}  c5 {[%clk 0:02:52]} 10. Nb5 {[%clk 0:02:40]}  Na6 {[%clk 0:02:51]} 11. d5 {[%clk 0:02:36]}  Bd7 {[%clk 0:02:49]} 12. Ng5 {[%clk 0:02:34]}  Bxb5 {[%clk 0:02:40]} 13. cxb5 {[%clk 0:02:34]}  Nc7 {[%clk 0:02:40]} 14. Ne6 {[%clk 0:02:24]}  Nxe6 {[%clk 0:02:39]} 15. dxe6 {[%clk 0:02:24]}  Rc8 {[%clk 0:02:34]} 16. Bc6 {[%clk 0:02:24]}  Rxc6 {[%clk 0:02:32]} 17. bxc6 {[%clk 0:02:24]}  Qxc6 {[%clk 0:02:32]} 18. Bb2 {[%clk 0:02:24]}  Qe4 {[%clk 0:02:29]} 19. Qd3 {[%clk 0:02:19]}  Qxe6 {[%clk 0:02:29]} 20. Qa6 {[%clk 0:02:19]}  Qd7 {[%clk 0:02:27]} 21. Rfd1 {[%clk 0:02:14]}  f4 {[%clk 0:02:26]} 22. Qc4+ {[%clk 0:02:07]}  Kh8 {[%clk 0:02:21]} 23. Qxf4 {[%clk 0:02:05]}  Ng4 {[%clk 0:02:17]} 24. Qxf8# {[%clk 0:02:05]} 1-0


[Site "https://www.chess.com"]

[Event "Titled Tuesday Blitz April 12 Late 2022"]
[White "Bachmann, Axel"]
[Black "Petrova, Irina"]
[WhiteFideId "3700488"]
[BlackFideId "14124122"]
[WhiteElo "2587"]
[BlackElo "1993"]
[Result "1-0"]
[Round "11"]
[TimeControl "180+1"]
[Date "2022.04.13"]
[WhiteClock "0:00:11"]
[BlackClock "0:00:07"]

1. d4 {[%clk 0:03:00]}  d6 {[%clk 0:02:57]} 2. e4 {[%clk 0:02:58]}  Nf6 {[%clk 0:02:57]} 3. Nc3 {[%clk 0:02:54]}  e5 {[%clk 0:02:57]} 4. Nf3 {[%clk 0:02:45]}  Nbd7 {[%clk 0:02:57]} 5. Be3 {[%clk 0:02:30]}  Be7 {[%clk 0:02:56]} 6. Qd2 {[%clk 0:02:30]}  Ng4 {[%clk 0:02:52]} 7. O-O-O {[%clk 0:02:29]}  Nxe3 {[%clk 0:02:52]} 8. fxe3 {[%clk 0:02:30]}  O-O {[%clk 0:02:51]} 9. Kb1 {[%clk 0:02:26]}  c6 {[%clk 0:02:48]} 10. h4 {[%clk 0:02:20]}  b5 {[%clk 0:02:45]} 11. a3 {[%clk 0:02:09]}  a5 {[%clk 0:02:37]} 12. Ne2 {[%clk 0:01:57]}  Qc7 {[%clk 0:02:23]} 13. Ng3 {[%clk 0:01:57]}  Nf6 {[%clk 0:02:22]} 14. h5 {[%clk 0:01:52]}  h6 {[%clk 0:02:21]} 15. Bd3 {[%clk 0:01:51]}  Bd7 {[%clk 0:02:05]} 16. Rdf1 {[%clk 0:01:51]}  c5 {[%clk 0:01:58]} 17. Be2 {[%clk 0:01:30]}  b4 {[%clk 0:01:49]} 18. a4 {[%clk 0:01:28]}  c4 {[%clk 0:01:40]} 19. b3 {[%clk 0:01:26]}  cxb3 {[%clk 0:01:15]} 20. cxb3 {[%clk 0:01:27]}  Rfc8 {[%clk 0:01:03]} 21. Rc1 {[%clk 0:01:25]}  Qb7 {[%clk 0:01:00]} 22. Bd3 {[%clk 0:01:15]}  Be6 {[%clk 0:00:39]} 23. Kb2 {[%clk 0:01:06]}  Rc3 {[%clk 0:00:29]} 24. Rxc3 {[%clk 0:01:02]}  bxc3+ {[%clk 0:00:30]} 25. Qxc3 {[%clk 0:01:02]}  Rc8 {[%clk 0:00:30]} 26. Rc1 {[%clk 0:00:41]}  Rxc3 {[%clk 0:00:29]} 27. Rxc3 {[%clk 0:00:42]}  Bg4 {[%clk 0:00:27]} 28. dxe5 {[%clk 0:00:35]}  dxe5 {[%clk 0:00:28]} 29. Nxe5 {[%clk 0:00:34]}  Qb4 {[%clk 0:00:20]} 30. Nf5 {[%clk 0:00:18]}  Bxf5 {[%clk 0:00:19]} 31. exf5 {[%clk 0:00:16]}  Qa3+ {[%clk 0:00:19]} 32. Kb1 {[%clk 0:00:16]}  Bb4 {[%clk 0:00:13]} 33. Rc8+ {[%clk 0:00:14]}  Kh7 {[%clk 0:00:13]} 34. Bc2 {[%clk 0:00:11]}  Nd5 {[%clk 0:00:08]} 35. f6+ {[%clk 0:00:11]}  g6 {[%clk 0:00:09]} 36. hxg6+ {[%clk 0:00:11]}  fxg6 {[%clk 0:00:07]} 37. Bxg6# {[%clk 0:00:11]} 1-0


[Site "https://www.chess.com"]

[Event "Titled Tuesday Blitz April 12 Late 2022"]
[White "Dahlgren, James Allen"]
[Black "Prado, Alexandra"]
[WhiteFideId "22256873"]
[BlackFideId "3301346"]
[WhiteElo "2080"]
[BlackElo "1678"]
[Result "1-0"]
[Round "11"]
[TimeControl "180+1"]
[Date "2022.04.13"]
[WhiteClock "0:01:27"]
[BlackClock "0:00:11"]

1. d3 {[%clk 0:02:57]}  g6 {[%clk 0:02:53]} 2. f4 {[%clk 0:02:58]}  Bg7 {[%clk 0:02:53]} 3. Nf3 {[%clk 0:02:59]}  d6 {[%clk 0:02:50]} 4. e4 {[%clk 0:02:59]}  Nc6 {[%clk 0:02:49]} 5. Nc3 {[%clk 0:03:00]}  e5 {[%clk 0:02:45]} 6. Be2 {[%clk 0:03:00]}  Nf6 {[%clk 0:02:38]} 7. O-O {[%clk 0:02:59]}  O-O {[%clk 0:02:36]} 8. h3 {[%clk 0:02:59]}  exf4 {[%clk 0:02:32]} 9. Bxf4 {[%clk 0:03:00]}  Nh5 {[%clk 0:02:32]} 10. Bg5 {[%clk 0:03:00]}  f6 {[%clk 0:02:29]} 11. Be3 {[%clk 0:03:00]}  Ng3 {[%clk 0:02:27]} 12. Rf2 {[%clk 0:02:56]}  f5 {[%clk 0:02:06]} 13. Kh2 {[%clk 0:02:54]}  Nxe2 {[%clk 0:02:03]} 14. Qxe2 {[%clk 0:02:53]}  fxe4 {[%clk 0:02:00]} 15. Nxe4 {[%clk 0:02:54]}  Bxb2 {[%clk 0:01:59]} 16. Rb1 {[%clk 0:02:54]}  Bg7 {[%clk 0:01:59]} 17. Bg5 {[%clk 0:02:53]}  Qe8 {[%clk 0:01:53]} 18. Qd2 {[%clk 0:02:52]}  Ne5 {[%clk 0:01:48]} 19. Nxe5 {[%clk 0:02:46]}  Qxe5+ {[%clk 0:01:49]} 20. Kh1 {[%clk 0:02:41]}  Rxf2 {[%clk 0:01:48]} 21. Qxf2 {[%clk 0:02:39]}  b6 {[%clk 0:01:39]} 22. Rf1 {[%clk 0:02:37]}  Bb7 {[%clk 0:01:37]} 23. Qf7+ {[%clk 0:02:32]}  Kh8 {[%clk 0:01:36]} 24. Bf6 {[%clk 0:02:30]}  Bxf6 {[%clk 0:01:01]} 25. Nxf6 {[%clk 0:02:31]}  Bxg2+ {[%clk 0:00:51]} 26. Kxg2 {[%clk 0:02:29]}  Qg5+ {[%clk 0:00:44]} 27. Kh1 {[%clk 0:02:25]}  Qh6 {[%clk 0:00:43]} 28. Kg2 {[%clk 0:02:12]}  Rf8 {[%clk 0:00:38]} 29. Qxc7 {[%clk 0:01:54]}  Qg5+ {[%clk 0:00:38]} 30. Ng4 {[%clk 0:01:51]}  Rxf1 {[%clk 0:00:33]} 31. Kxf1 {[%clk 0:01:49]}  Qf4+ {[%clk 0:00:29]} 32. Nf2 {[%clk 0:01:44]}  Qc1+ {[%clk 0:00:26]} 33. Ke2 {[%clk 0:01:41]}  Qf4 {[%clk 0:00:19]} 34. Qb8+ {[%clk 0:01:35]}  Kg7 {[%clk 0:00:12]} 35. Qxa7+ {[%clk 0:01:36]}  Kh6 {[%clk 0:00:13]} 36. Qxb6 {[%clk 0:01:28]}  Qe5+ {[%clk 0:00:11]} 37. Qe3+ {[%clk 0:01:27]} 1-0


[Site "https://www.chess.com"]

[Event "Titled Tuesday Blitz April 12 Late 2022"]
[White "De Souza, Cristiano Gomes"]
[Black "Estrada Nieto, Julian"]
[WhiteFideId "2151758"]
[BlackFideId "5101018"]
[WhiteElo "2068"]
[BlackElo "2252"]
[Result "0-1"]
[Round "11"]
[TimeControl "180+1"]
[Date "2022.04.13"]
[WhiteClock "0:00:18"]
[BlackClock "0:00:05"]

1. d4 {[%clk 0:02:59]}  Nf6 {[%clk 0:03:00]} 2. c4 {[%clk 0:02:56]}  e6 {[%clk 0:03:00]} 3. Nf3 {[%clk 0:02:48]}  c5 {[%clk 0:03:00]} 4. d5 {[%clk 0:02:48]}  exd5 {[%clk 0:03:00]} 5. cxd5 {[%clk 0:02:48]}  d6 {[%clk 0:03:01]} 6. Nc3 {[%clk 0:02:48]}  g6 {[%clk 0:03:00]} 7. h3 {[%clk 0:02:48]}  Bg7 {[%clk 0:03:00]} 8. e4 {[%clk 0:02:48]}  O-O {[%clk 0:03:00]} 9. Bd3 {[%clk 0:02:48]}  a6 {[%clk 0:03:01]} 10. a4 {[%clk 0:02:46]}  Qc7 {[%clk 0:03:01]} 11. O-O {[%clk 0:02:45]}  Nbd7 {[%clk 0:02:57]} 12. Be3 {[%clk 0:02:44]}  c4 {[%clk 0:02:54]} 13. Be2 {[%clk 0:02:43]}  Nc5 {[%clk 0:02:54]} 14. Nd2 {[%clk 0:02:43]}  Re8 {[%clk 0:02:51]} 15. f3 {[%clk 0:02:42]}  Rb8 {[%clk 0:02:22]} 16. Nxc4 {[%clk 0:02:41]}  b5 {[%clk 0:02:22]} 17. axb5 {[%clk 0:02:40]}  axb5 {[%clk 0:02:22]} 18. Na5 {[%clk 0:02:39]}  Bd7 {[%clk 0:02:20]} 19. b4 {[%clk 0:02:29]}  Nh5 {[%clk 0:02:05]} 20. Rc1 {[%clk 0:02:23]}  Nb7 {[%clk 0:01:44]} 21. Nxb5 {[%clk 0:02:22]}  Qd8 {[%clk 0:01:43]} 22. Nc6 {[%clk 0:02:16]}  Qh4 {[%clk 0:01:34]} 23. Bf2 {[%clk 0:02:10]}  Qf4 {[%clk 0:01:31]} 24. Qe1 {[%clk 0:02:04]}  Rbc8 {[%clk 0:01:16]} 25. g3 {[%clk 0:02:02]}  Qh6 {[%clk 0:00:58]} 26. g4 {[%clk 0:01:47]}  Nf4 {[%clk 0:00:56]} 27. h4 {[%clk 0:01:47]}  Bxc6 {[%clk 0:00:44]} 28. Rxc6 {[%clk 0:01:43]}  Nh3+ {[%clk 0:00:31]} 29. Kg2 {[%clk 0:01:42]}  Nxf2 {[%clk 0:00:32]} 30. Qxf2 {[%clk 0:01:40]}  Be5 {[%clk 0:00:30]} 31. Rfc1 {[%clk 0:01:36]}  Rcd8 {[%clk 0:00:26]} 32. g5 {[%clk 0:01:26]}  Qg7 {[%clk 0:00:20]} 33. f4 {[%clk 0:01:26]}  Bb2 {[%clk 0:00:20]} 34. R1c2 {[%clk 0:01:22]}  Ra8 {[%clk 0:00:19]} 35. Bf3 {[%clk 0:01:18]}  Ra2 {[%clk 0:00:12]} 36. Rc7 {[%clk 0:01:11]}  Rb8 {[%clk 0:00:11]} 37. Rxb7 {[%clk 0:01:08]}  Rxb7 {[%clk 0:00:12]} 38. Rc8+ {[%clk 0:01:08]}  Qf8 {[%clk 0:00:11]} 39. Rxf8+ {[%clk 0:01:08]}  Kxf8 {[%clk 0:00:12]} 40. Nxd6 {[%clk 0:01:08]}  Rxb4 {[%clk 0:00:11]} 41. e5 {[%clk 0:01:02]}  Rba4 {[%clk 0:00:11]} 42. Qc5 {[%clk 0:00:54]}  Bd4+ {[%clk 0:00:10]} 43. Kg3 {[%clk 0:00:48]}  Bxc5 {[%clk 0:00:10]} 44. Ne4 {[%clk 0:00:48]}  Bd4 {[%clk 0:00:09]} 45. Nf6 {[%clk 0:00:47]}  R4a3 {[%clk 0:00:07]} 46. Nxh7+ {[%clk 0:00:45]}  Ke7 {[%clk 0:00:07]} 47. Nf6 {[%clk 0:00:44]}  Ra1 {[%clk 0:00:06]} 48. d6+ {[%clk 0:00:43]}  Kd8 {[%clk 0:00:06]} 49. Ne4 {[%clk 0:00:27]}  Rg1+ {[%clk 0:00:05]} 50. Kh2 {[%clk 0:00:28]}  Rxf3 {[%clk 0:00:04]} 51. e6 {[%clk 0:00:28]}  fxe6 {[%clk 0:00:03]} 52. h5 {[%clk 0:00:24]}  gxh5 {[%clk 0:00:03]} 53. Nf6 {[%clk 0:00:22]}  Re1 {[%clk 0:00:03]} 54. Kg2 {[%clk 0:00:21]}  Rxf4 {[%clk 0:00:03]} 55. Nxh5 {[%clk 0:00:20]}  Rg4+ {[%clk 0:00:03]} 56. Kf3 {[%clk 0:00:20]}  Rxg5 {[%clk 0:00:03]} 57. Nf4 {[%clk 0:00:20]}  Rge5 {[%clk 0:00:03]} 58. Nd3 {[%clk 0:00:19]}  Kd7 {[%clk 0:00:03]} 59. Nxe5+ {[%clk 0:00:19]}  Rxe5 {[%clk 0:00:03]} 60. Kf4 {[%clk 0:00:18]}  Kxd6 {[%clk 0:00:04]} 61. Kg4 {[%clk 0:00:18]}  Kd5 {[%clk 0:00:05]} 0-1


[Site "https://www.chess.com"]